[Event "Titled Tuesday Blitz April 26 Late 2022"]
[White "Sernecki, Franciszek"]
[Black "Kollars, Dmitrij"]
[WhiteFideId "1169297"]
[BlackFideId "12909572"]
[WhiteElo "2165"]
[BlackElo "2584"]
[Result "0-1"]
[Round "03"]
[TimeControl "180+1"]
[Date "2022.04.26"]
[WhiteClock "0:00:01"]
[BlackClock "0:00:48"]

1. d4 {[%clk 0:02:54]}  Nf6 {[%clk 0:02:59]} 2. c4 {[%clk 0:02:54]}  g6 {[%clk 0:02:59]} 3. Nc3 {[%clk 0:02:53]}  Bg7 {[%clk 0:02:59]} 4. e4 {[%clk 0:02:54]}  O-O {[%clk 0:03:00]} 5. Nf3 {[%clk 0:02:52]}  d6 {[%clk 0:03:00]} 6. Be2 {[%clk 0:02:53]}  e5 {[%clk 0:03:00]} 7. dxe5 {[%clk 0:02:52]}  dxe5 {[%clk 0:03:00]} 8. O-O {[%clk 0:02:53]}  c6 {[%clk 0:02:58]} 9. Qc2 {[%clk 0:02:52]}  Qe7 {[%clk 0:02:56]} 10. Rb1 {[%clk 0:02:47]}  a5 {[%clk 0:02:55]} 11. Na4 {[%clk 0:02:44]}  Nbd7 {[%clk 0:02:44]} 12. c5 {[%clk 0:02:42]}  Nh5 {[%clk 0:02:39]} 13. Rd1 {[%clk 0:02:30]}  Nf4 {[%clk 0:02:37]} 14. Bf1 {[%clk 0:02:30]}  Ne6 {[%clk 0:02:35]} 15. Be3 {[%clk 0:02:29]}  f5 {[%clk 0:02:25]} 16. exf5 {[%clk 0:02:28]}  gxf5 {[%clk 0:02:26]} 17. Rd6 {[%clk 0:02:20]}  Kh8 {[%clk 0:02:19]} 18. Rbd1 {[%clk 0:02:10]}  e4 {[%clk 0:02:08]} 19. Nd4 {[%clk 0:01:40]}  Ne5 {[%clk 0:02:01]} 20. Nb6 {[%clk 0:01:34]}  Nxd4 {[%clk 0:02:00]} 21. Bxd4 {[%clk 0:01:24]}  Rb8 {[%clk 0:02:01]} 22. Qc3 {[%clk 0:01:19]}  f4 {[%clk 0:01:53]} 23. Nxc8 {[%clk 0:00:50]}  Rbxc8 {[%clk 0:01:54]} 24. Qxa5 {[%clk 0:00:44]}  e3 {[%clk 0:01:41]} 25. fxe3 {[%clk 0:00:39]}  fxe3 {[%clk 0:01:42]} 26. Qc3 {[%clk 0:00:27]}  Qg5 {[%clk 0:01:27]} 27. Bxe3 {[%clk 0:00:08]}  Nf3+ {[%clk 0:01:13]} 28. Kh1 {[%clk 0:00:09]}  Qh5 {[%clk 0:01:05]} 29. Qxg7+ {[%clk 0:00:03]}  Kxg7 {[%clk 0:01:06]} 30. Rd7+ {[%clk 0:00:04]}  Kh8 {[%clk 0:00:53]} 31. h3 {[%clk 0:00:04]}  Qe5 {[%clk 0:00:50]} 32. gxf3 {[%clk 0:00:02]}  Qxe3 {[%clk 0:00:50]} 33. R1d3 {[%clk 0:00:02]}  Qf2 {[%clk 0:00:49]} 34. Bg2 {[%clk 0:00:02]}  Rce8 {[%clk 0:00:48]} 35. Rg7 {[%clk 0:00:01]}  Kxg7 {[%clk 0:00:48]} 0-1


[Site "https://www.chess.com"]

[Event "Titled Tuesday Blitz April 26 Late 2022"]
[White "Shirov, Alexei"]
[Black "Grischuk, Alexander"]
[WhiteFideId "2209390"]
[BlackFideId "4126025"]
[WhiteElo "2678"]
[BlackElo "2762"]
[Result "1/2-1/2"]
[Round "03"]
[TimeControl "180+1"]
[Date "2022.04.26"]
[WhiteClock "0:00:46"]
[BlackClock "0:00:32"]

1. e4 {[%clk 0:03:00]}  e5 {[%clk 0:02:57]} 2. Nf3 {[%clk 0:03:00]}  Nc6 {[%clk 0:02:58]} 3. Bb5 {[%clk 0:02:59]}  Nf6 {[%clk 0:02:56]} 4. O-O {[%clk 0:02:57]}  Nxe4 {[%clk 0:02:57]} 5. d4 {[%clk 0:02:57]}  Nd6 {[%clk 0:02:57]} 6. Bxc6 {[%clk 0:02:56]}  dxc6 {[%clk 0:02:58]} 7. dxe5 {[%clk 0:02:56]}  Nf5 {[%clk 0:02:58]} 8. Qxd8+ {[%clk 0:02:56]}  Kxd8 {[%clk 0:02:59]} 9. h3 {[%clk 0:02:56]}  Bd7 {[%clk 0:02:53]} 10. Rd1 {[%clk 0:02:54]}  Be7 {[%clk 0:02:51]} 11. g4 {[%clk 0:02:52]}  Nh4 {[%clk 0:02:50]} 12. Nxh4 {[%clk 0:02:50]}  Bxh4 {[%clk 0:02:51]} 13. Nd2 {[%clk 0:02:49]}  Kc8 {[%clk 0:02:48]} 14. Nf3 {[%clk 0:02:38]}  Be7 {[%clk 0:02:48]} 15. Bg5 {[%clk 0:02:34]}  Bc5 {[%clk 0:02:48]} 16. Rd3 {[%clk 0:02:27]}  Be6 {[%clk 0:02:48]} 17. Nd4 {[%clk 0:02:11]}  Bxd4 {[%clk 0:02:30]} 18. Rxd4 {[%clk 0:02:10]}  c5 {[%clk 0:02:31]} 19. Rd3 {[%clk 0:01:53]}  h6 {[%clk 0:02:27]} 20. Bh4 {[%clk 0:01:32]}  g5 {[%clk 0:01:53]} 21. Bg3 {[%clk 0:01:32]}  h5 {[%clk 0:01:53]} 22. f3 {[%clk 0:01:29]}  b6 {[%clk 0:01:52]} 23. Kg2 {[%clk 0:01:12]}  Kb7 {[%clk 0:01:51]} 24. Bf2 {[%clk 0:01:11]}  Kc6 {[%clk 0:01:45]} 25. Be3 {[%clk 0:01:10]}  Rag8 {[%clk 0:01:46]} 26. a3 {[%clk 0:01:08]}  a5 {[%clk 0:01:44]} 27. Rad1 {[%clk 0:01:06]}  a4 {[%clk 0:01:41]} 28. R1d2 {[%clk 0:00:55]}  Kb7 {[%clk 0:01:22]} 29. Rd1 {[%clk 0:00:54]}  Kc8 {[%clk 0:01:22]} 30. R3d2 {[%clk 0:00:53]}  Rg6 {[%clk 0:01:19]} 31. Bf2 {[%clk 0:00:52]}  Rgh6 {[%clk 0:01:17]} 32. Bg3 {[%clk 0:00:52]}  R6h7 {[%clk 0:01:12]} 33. Rd3 {[%clk 0:00:51]}  Re8 {[%clk 0:01:10]} 34. R3d2 {[%clk 0:00:51]}  Rhh8 {[%clk 0:01:05]} 35. Rd3 {[%clk 0:00:50]}  Kb7 {[%clk 0:01:05]} 36. R1d2 {[%clk 0:00:50]}  Kc6 {[%clk 0:01:05]} 37. Rd1 {[%clk 0:00:50]}  b5 {[%clk 0:00:53]} 38. c3 {[%clk 0:00:49]}  Bb3 {[%clk 0:00:44]} 39. R1d2 {[%clk 0:00:48]}  Bc4 {[%clk 0:00:44]} 40. Rd7 {[%clk 0:00:47]}  Be6 {[%clk 0:00:44]} 41. R7d3 {[%clk 0:00:46]}  Bc4 {[%clk 0:00:33]} 42. Rd7 {[%clk 0:00:46]}  Be6 {[%clk 0:00:32]} 43. R7d3 {[%clk 0:00:46]}  Bc4 {[%clk 0:00:32]} 1/2-1/2


[Site "https://www.chess.com"]

[Event "Titled Tuesday Blitz April 26 Late 2022"]
[White "Shuvalova, Polina"]
[Black "Ferreira, Vitor Hugo Vieira"]
[WhiteFideId "24171760"]
[BlackFideId "2119765"]
[WhiteElo "2355"]
[BlackElo "2165"]
[Result "0-1"]
[Round "03"]
[TimeControl "180+1"]
[Date "2022.04.26"]
[WhiteClock "0:00:02"]
[BlackClock "0:00:45"]

1. d4 {[%clk 0:03:00]}  Nf6 {[%clk 0:02:56]} 2. Nf3 {[%clk 0:03:00]}  g6 {[%clk 0:02:56]} 3. c4 {[%clk 0:03:00]}  Bg7 {[%clk 0:02:55]} 4. Nc3 {[%clk 0:03:01]}  d5 {[%clk 0:02:56]} 5. cxd5 {[%clk 0:03:01]}  Nxd5 {[%clk 0:02:50]} 6. e4 {[%clk 0:03:01]}  Nxc3 {[%clk 0:02:50]} 7. bxc3 {[%clk 0:03:02]}  c5 {[%clk 0:02:51]} 8. Bb5+ {[%clk 0:03:02]}  Bd7 {[%clk 0:02:48]} 9. Rb1 {[%clk 0:02:59]}  O-O {[%clk 0:02:47]} 10. O-O {[%clk 0:02:58]}  b6 {[%clk 0:02:43]} 11. Bd3 {[%clk 0:02:48]}  Bg4 {[%clk 0:02:40]} 12. e5 {[%clk 0:02:25]}  Nc6 {[%clk 0:02:33]} 13. h3 {[%clk 0:02:22]}  Be6 {[%clk 0:02:22]} 14. Be3 {[%clk 0:02:07]}  cxd4 {[%clk 0:02:19]} 15. cxd4 {[%clk 0:02:06]}  Bxa2 {[%clk 0:02:18]} 16. Rc1 {[%clk 0:01:43]}  Bd5 {[%clk 0:02:17]} 17. Ng5 {[%clk 0:01:34]}  f6 {[%clk 0:02:07]} 18. exf6 {[%clk 0:01:29]}  Rxf6 {[%clk 0:01:54]} 19. Ne4 {[%clk 0:01:14]}  Rf8 {[%clk 0:01:51]} 20. Nc3 {[%clk 0:01:14]}  e6 {[%clk 0:01:48]} 21. Nxd5 {[%clk 0:01:13]}  Qxd5 {[%clk 0:01:47]} 22. Bc4 {[%clk 0:01:05]}  Qd6 {[%clk 0:01:44]} 23. Qg4 {[%clk 0:00:40]}  Nxd4 {[%clk 0:01:39]} 24. Rfd1 {[%clk 0:00:39]}  Rad8 {[%clk 0:01:32]} 25. Rd3 {[%clk 0:00:28]}  Qe5 {[%clk 0:01:30]} 26. Rcd1 {[%clk 0:00:25]}  Nc6 {[%clk 0:01:28]} 27. Bxe6+ {[%clk 0:00:21]}  Kh8 {[%clk 0:01:27]} 28. Rxd8 {[%clk 0:00:17]}  Rxd8 {[%clk 0:01:27]} 29. Rc1 {[%clk 0:00:12]}  Nd4 {[%clk 0:01:04]} 30. Ba2 {[%clk 0:00:12]}  Nf5 {[%clk 0:01:02]} 31. Qg5 {[%clk 0:00:05]}  Bf6 {[%clk 0:00:55]} 32. Qf4 {[%clk 0:00:06]}  Nxe3 {[%clk 0:00:54]} 33. fxe3 {[%clk 0:00:04]}  Qxf4 {[%clk 0:00:52]} 34. exf4 {[%clk 0:00:05]}  Rd2 {[%clk 0:00:52]} 35. Be6 {[%clk 0:00:03]}  Bd4+ {[%clk 0:00:50]} 36. Kh2 {[%clk 0:00:03]}  Bc5 {[%clk 0:00:50]} 37. Kg3 {[%clk 0:00:02]}  a5 {[%clk 0:00:47]} 38. f5 {[%clk 0:00:01]}  gxf5 {[%clk 0:00:46]} 39. Bxf5 {[%clk 0:00:02]}  Kg7 {[%clk 0:00:47]} 40. Rf1 {[%clk 0:00:03]}  a4 {[%clk 0:00:46]} 41. Rf4 {[%clk 0:00:02]}  Bd6 {[%clk 0:00:45]} 0-1


[Site "https://www.chess.com"]

[Event "Titled Tuesday Blitz April 26 Late 2022"]
[White "Siddharth, Jagadeesh"]
[Black "Dobre, Claudiu-Cristian"]
[WhiteFideId "5818320"]
[BlackFideId "1211854"]
[WhiteElo "2127"]
[BlackElo "2207"]
[Result "1-0"]
[Round "03"]
[TimeControl "180+1"]
[Date "2022.04.26"]
[WhiteClock "0:00:54"]
[BlackClock "0:00:01"]

1. e4 {[%clk 0:03:00]}  Nc6 {[%clk 0:03:00]} 2. Nf3 {[%clk 0:03:00]}  d6 {[%clk 0:03:00]} 3. h3 {[%clk 0:02:58]}  Nf6 {[%clk 0:03:00]} 4. Nc3 {[%clk 0:02:57]}  e5 {[%clk 0:03:00]} 5. d4 {[%clk 0:02:57]}  exd4 {[%clk 0:02:59]} 6. Nxd4 {[%clk 0:02:58]}  Bd7 {[%clk 0:02:59]} 7. Be3 {[%clk 0:02:57]}  Be7 {[%clk 0:02:59]} 8. Qd2 {[%clk 0:02:58]}  O-O {[%clk 0:02:58]} 9. O-O-O {[%clk 0:02:58]}  Nxd4 {[%clk 0:02:56]} 10. Bxd4 {[%clk 0:02:58]}  Bc6 {[%clk 0:02:57]} 11. Bd3 {[%clk 0:02:56]}  Nd7 {[%clk 0:02:57]} 12. f4 {[%clk 0:02:51]}  Bf6 {[%clk 0:02:57]} 13. Be3 {[%clk 0:02:47]}  a6 {[%clk 0:02:56]} 14. g4 {[%clk 0:02:45]}  g6 {[%clk 0:02:45]} 15. h4 {[%clk 0:02:30]}  b5 {[%clk 0:02:42]} 16. h5 {[%clk 0:02:29]}  b4 {[%clk 0:02:35]} 17. hxg6 {[%clk 0:02:18]}  fxg6 {[%clk 0:02:34]} 18. Bc4+ {[%clk 0:02:12]}  Kh8 {[%clk 0:02:29]} 19. Qh2 {[%clk 0:01:49]}  Qe7 {[%clk 0:02:21]} 20. Nd5 {[%clk 0:01:49]}  Bxd5 {[%clk 0:02:17]} 21. Bxd5 {[%clk 0:01:50]}  g5 {[%clk 0:02:00]} 22. Bxa8 {[%clk 0:01:41]}  Rxa8 {[%clk 0:01:59]} 23. e5 {[%clk 0:01:40]}  dxe5 {[%clk 0:01:42]} 24. fxg5 {[%clk 0:01:31]}  Bxg5 {[%clk 0:01:41]} 25. Bxg5 {[%clk 0:01:23]}  Qxg5+ {[%clk 0:01:41]} 26. Kb1 {[%clk 0:01:23]}  Nf8 {[%clk 0:01:32]} 27. Rd7 {[%clk 0:01:16]}  Re8 {[%clk 0:00:15]} 28. Rxh7+ {[%clk 0:01:14]}  Kg8 {[%clk 0:00:15]} 29. Rh8+ {[%clk 0:01:13]}  Kg7 {[%clk 0:00:15]} 30. Qf2 {[%clk 0:01:06]}  Qg6 {[%clk 0:00:12]} 31. g5 {[%clk 0:00:55]}  Nd7 {[%clk 0:00:05]} 32. R1h7+ {[%clk 0:00:52]}  Qxh7 {[%clk 0:00:04]} 33. Rxh7+ {[%clk 0:00:53]}  Kxh7 {[%clk 0:00:01]} 34. Qf7+ {[%clk 0:00:54]} 1-0


[Site "https://www.chess.com"]

[Event "Titled Tuesday Blitz April 26 Late 2022"]
[White "Skliarov, Viktor"]
[Black "Zanette, Edgard Vinicius"]
[WhiteFideId "14106736"]
[BlackFideId "2109263"]
[WhiteElo "2229"]
[BlackElo "2182"]
[Result "1-0"]
[Round "03"]
[TimeControl "180+1"]
[Date "2022.04.26"]
[WhiteClock "0:00:16"]
[BlackClock "0:00:16"]

1. e4 {[%clk 0:03:00]}  e5 {[%clk 0:02:59]} 2. Nc3 {[%clk 0:02:59]}  Nf6 {[%clk 0:02:58]} 3. Bc4 {[%clk 0:03:00]}  Nc6 {[%clk 0:02:54]} 4. d3 {[%clk 0:02:59]}  Bc5 {[%clk 0:02:53]} 5. a3 {[%clk 0:02:59]}  d6 {[%clk 0:02:52]} 6. h3 {[%clk 0:02:59]}  a6 {[%clk 0:02:51]} 7. Nge2 {[%clk 0:02:58]}  Be6 {[%clk 0:02:47]} 8. Nd5 {[%clk 0:02:58]}  Bxd5 {[%clk 0:02:30]} 9. exd5 {[%clk 0:02:58]}  Ne7 {[%clk 0:02:30]} 10. Nc3 {[%clk 0:02:58]}  h6 {[%clk 0:02:27]} 11. Qf3 {[%clk 0:02:56]}  Qd7 {[%clk 0:02:20]} 12. O-O {[%clk 0:02:34]}  Qf5 {[%clk 0:02:16]} 13. Qxf5 {[%clk 0:02:14]}  Nxf5 {[%clk 0:02:14]} 14. Ne4 {[%clk 0:02:15]}  Nxe4 {[%clk 0:02:11]} 15. dxe4 {[%clk 0:02:15]}  Nd4 {[%clk 0:02:12]} 16. Bd3 {[%clk 0:02:08]}  c6 {[%clk 0:02:00]} 17. b4 {[%clk 0:02:00]}  Ba7 {[%clk 0:01:56]} 18. Be3 {[%clk 0:01:34]}  cxd5 {[%clk 0:01:52]} 19. exd5 {[%clk 0:01:34]}  O-O {[%clk 0:01:52]} 20. c3 {[%clk 0:00:56]}  Nb5 {[%clk 0:01:46]} 21. Bxa7 {[%clk 0:00:47]}  Rxa7 {[%clk 0:01:42]} 22. c4 {[%clk 0:00:48]}  Nd4 {[%clk 0:01:41]} 23. Rac1 {[%clk 0:00:41]}  b6 {[%clk 0:01:38]} 24. f4 {[%clk 0:00:39]}  f6 {[%clk 0:01:34]} 25. fxe5 {[%clk 0:00:39]}  dxe5 {[%clk 0:01:30]} 26. c5 {[%clk 0:00:39]}  bxc5 {[%clk 0:01:26]} 27. bxc5 {[%clk 0:00:39]}  Rc8 {[%clk 0:01:18]} 28. Rc3 {[%clk 0:00:36]}  Kf8 {[%clk 0:01:06]} 29. Rb1 {[%clk 0:00:30]}  e4 {[%clk 0:01:02]} 30. Bf1 {[%clk 0:00:27]}  f5 {[%clk 0:00:44]} 31. Rb6 {[%clk 0:00:25]}  f4 {[%clk 0:00:35]} 32. Rxa6 {[%clk 0:00:22]}  Rxa6 {[%clk 0:00:32]} 33. Bxa6 {[%clk 0:00:23]}  Ra8 {[%clk 0:00:30]} 34. Bf1 {[%clk 0:00:22]}  e3 {[%clk 0:00:29]} 35. c6 {[%clk 0:00:18]}  Ke7 {[%clk 0:00:22]} 36. c7 {[%clk 0:00:18]}  Kd7 {[%clk 0:00:21]} 37. Bd3 {[%clk 0:00:18]}  e2 {[%clk 0:00:19]} 38. Kf2 {[%clk 0:00:17]}  Rc8 {[%clk 0:00:17]} 39. Bxe2 {[%clk 0:00:15]}  Nxe2 {[%clk 0:00:17]} 40. Kxe2 {[%clk 0:00:15]}  Rxc7 {[%clk 0:00:16]} 41. Rxc7+ {[%clk 0:00:15]}  Kxc7 {[%clk 0:00:16]} 42. Kf3 {[%clk 0:00:15]}  g5 {[%clk 0:00:16]} 43. Ke4 {[%clk 0:00:16]}  Kd6 {[%clk 0:00:16]} 44. a4 {[%clk 0:00:16]}  h5 {[%clk 0:00:16]} 45. a5 {[%clk 0:00:16]} 1-0


[Site "https://www.chess.com"]

[Event "Titled Tuesday Blitz April 26 Late 2022"]
[White "Smail, Benedict"]
[Black "Bas Mas, Jose Joaquin"]
[WhiteFideId "2050480"]
[BlackFideId "22219064"]
[WhiteElo "2070"]
[BlackElo "2212"]
[Result "1-0"]
[Round "03"]
[TimeControl "180+1"]
[Date "2022.04.26"]
[WhiteClock "0:00:24"]
[BlackClock "0:00:51"]

1. d4 {[%clk 0:03:00]}  f5 {[%clk 0:02:59]} 2. g3 {[%clk 0:03:00]}  Nf6 {[%clk 0:02:59]} 3. Bg2 {[%clk 0:03:00]}  e6 {[%clk 0:03:00]} 4. c4 {[%clk 0:03:00]}  Bb4+ {[%clk 0:02:59]} 5. Bd2 {[%clk 0:02:59]}  Be7 {[%clk 0:02:59]} 6. Nf3 {[%clk 0:02:57]}  O-O {[%clk 0:02:59]} 7. Nc3 {[%clk 0:02:57]}  Ne4 {[%clk 0:03:00]} 8. O-O {[%clk 0:02:55]}  d6 {[%clk 0:02:58]} 9. Qc2 {[%clk 0:02:52]}  Nxc3 {[%clk 0:02:58]} 10. Bxc3 {[%clk 0:02:52]}  Nc6 {[%clk 0:02:53]} 11. e4 {[%clk 0:02:51]}  fxe4 {[%clk 0:02:47]} 12. Qxe4 {[%clk 0:02:50]}  d5 {[%clk 0:02:47]} 13. cxd5 {[%clk 0:02:42]}  exd5 {[%clk 0:02:47]} 14. Qe2 {[%clk 0:02:41]}  Bg4 {[%clk 0:02:42]} 15. h3 {[%clk 0:02:39]}  Bh5 {[%clk 0:02:40]} 16. g4 {[%clk 0:02:27]}  Bg6 {[%clk 0:02:38]} 17. Ne5 {[%clk 0:02:27]}  Nxe5 {[%clk 0:02:36]} 18. dxe5 {[%clk 0:02:22]}  c6 {[%clk 0:02:36]} 19. f4 {[%clk 0:02:19]}  d4 {[%clk 0:02:27]} 20. Bd2 {[%clk 0:02:14]}  Bc2 {[%clk 0:02:17]} 21. Qc4+ {[%clk 0:02:06]}  Kh8 {[%clk 0:02:14]} 22. Qxc2 {[%clk 0:02:06]}  Qb6 {[%clk 0:02:13]} 23. Qd3 {[%clk 0:02:01]}  c5 {[%clk 0:02:13]} 24. b3 {[%clk 0:01:57]}  Qh6 {[%clk 0:02:04]} 25. f5 {[%clk 0:01:54]}  Qh4 {[%clk 0:02:03]} 26. Kh2 {[%clk 0:01:41]}  Rab8 {[%clk 0:01:55]} 27. Qg3 {[%clk 0:01:40]}  b5 {[%clk 0:01:48]} 28. Qxh4 {[%clk 0:01:39]}  Bxh4 {[%clk 0:01:49]} 29. Rac1 {[%clk 0:01:35]}  Rbc8 {[%clk 0:01:46]} 30. Bd5 {[%clk 0:01:14]}  Rfd8 {[%clk 0:01:42]} 31. Be6 {[%clk 0:01:14]}  Rc6 {[%clk 0:01:38]} 32. Rfd1 {[%clk 0:01:10]}  Be7 {[%clk 0:01:28]} 33. Ba5 {[%clk 0:01:08]}  Rf8 {[%clk 0:01:16]} 34. Kg3 {[%clk 0:00:50]}  Bg5 {[%clk 0:01:14]} 35. Bd2 {[%clk 0:00:49]}  Be7 {[%clk 0:01:13]} 36. Bf4 {[%clk 0:00:46]}  Ra6 {[%clk 0:01:12]} 37. Rd2 {[%clk 0:00:42]}  Rd8 {[%clk 0:01:09]} 38. h4 {[%clk 0:00:40]}  Ra3 {[%clk 0:01:05]} 39. Bg5 {[%clk 0:00:39]}  Bxg5 {[%clk 0:01:01]} 40. hxg5 {[%clk 0:00:39]}  c4 {[%clk 0:00:58]} 41. Kf4 {[%clk 0:00:38]}  c3 {[%clk 0:00:58]} 42. Rxc3 {[%clk 0:00:37]}  Rxa2 {[%clk 0:00:52]} 43. Rxa2 {[%clk 0:00:34]}  dxc3 {[%clk 0:00:52]} 44. Rc2 {[%clk 0:00:33]}  b4 {[%clk 0:00:53]} 45. Ke3 {[%clk 0:00:30]}  a5 {[%clk 0:00:52]} 46. g6 {[%clk 0:00:25]}  hxg6 {[%clk 0:00:51]} 47. Rh2# {[%clk 0:00:24]} 1-0


[Site "https://www.chess.com"]

[Event "Titled Tuesday Blitz April 26 Late 2022"]
[White "Song, Guannan Terry"]
[Black "Sarkar, Justin"]
[WhiteFideId "2614189"]
[BlackFideId "2010011"]
[WhiteElo "2115"]
[BlackElo "2038"]
[Result "0-1"]
[Round "03"]
[TimeControl "180+1"]
[Date "2022.04.26"]
[WhiteClock "0:00:15"]
[BlackClock "0:00:06"]

1. e4 {[%clk 0:03:00]}  c5 {[%clk 0:02:56]} 2. Nc3 {[%clk 0:02:57]}  Nc6 {[%clk 0:02:54]} 3. f4 {[%clk 0:02:57]}  d6 {[%clk 0:02:41]} 4. Nf3 {[%clk 0:02:58]}  Bg4 {[%clk 0:02:33]} 5. Bb5 {[%clk 0:02:58]}  g6 {[%clk 0:02:15]} 6. Bxc6+ {[%clk 0:02:52]}  bxc6 {[%clk 0:02:14]} 7. d3 {[%clk 0:02:53]}  Bg7 {[%clk 0:02:07]} 8. O-O {[%clk 0:02:52]}  Nf6 {[%clk 0:01:57]} 9. Qe1 {[%clk 0:02:51]}  Bxf3 {[%clk 0:01:49]} 10. Rxf3 {[%clk 0:02:52]}  O-O {[%clk 0:01:48]} 11. Qh4 {[%clk 0:02:50]}  e6 {[%clk 0:01:34]} 12. f5 {[%clk 0:02:48]}  Nd7 {[%clk 0:01:19]} 13. Bg5 {[%clk 0:02:39]}  Bf6 {[%clk 0:01:12]} 14. fxg6 {[%clk 0:02:25]}  fxg6 {[%clk 0:01:06]} 15. Bxf6 {[%clk 0:02:20]}  Rxf6 {[%clk 0:00:59]} 16. Qf2 {[%clk 0:02:04]}  Rxf3 {[%clk 0:00:57]} 17. Qxf3 {[%clk 0:02:05]}  Qe7 {[%clk 0:00:48]} 18. Rf1 {[%clk 0:02:01]}  Rf8 {[%clk 0:00:47]} 19. Qe2 {[%clk 0:02:00]}  Rxf1+ {[%clk 0:00:45]} 20. Qxf1 {[%clk 0:02:01]}  e5 {[%clk 0:00:44]} 21. h3 {[%clk 0:01:49]}  Qf7 {[%clk 0:00:42]} 22. Qe1 {[%clk 0:01:45]}  Qf4 {[%clk 0:00:36]} 23. b3 {[%clk 0:01:38]}  Nf6 {[%clk 0:00:32]} 24. Ne2 {[%clk 0:01:34]}  Qe3+ {[%clk 0:00:30]} 25. Qf2 {[%clk 0:01:34]}  Qxf2+ {[%clk 0:00:24]} 26. Kxf2 {[%clk 0:01:35]}  Kf7 {[%clk 0:00:23]} 27. Ng3 {[%clk 0:01:32]}  h5 {[%clk 0:00:21]} 28. Nf1 {[%clk 0:01:32]}  Ke6 {[%clk 0:00:20]} 29. Nd2 {[%clk 0:01:33]}  Ne8 {[%clk 0:00:17]} 30. Nc4 {[%clk 0:01:32]}  Nc7 {[%clk 0:00:16]} 31. Na5 {[%clk 0:01:32]}  Kd7 {[%clk 0:00:15]} 32. a4 {[%clk 0:01:32]}  Na6 {[%clk 0:00:14]} 33. Ke3 {[%clk 0:01:31]}  Nb4 {[%clk 0:00:14]} 34. Kd2 {[%clk 0:01:32]}  Kc7 {[%clk 0:00:13]} 35. Nc4 {[%clk 0:01:32]}  Kd7 {[%clk 0:00:12]} 36. Ne3 {[%clk 0:01:31]}  Na6 {[%clk 0:00:10]} 37. g3 {[%clk 0:01:31]}  Nc7 {[%clk 0:00:10]} 38. Ng2 {[%clk 0:01:31]}  Ke7 {[%clk 0:00:08]} 39. Ke3 {[%clk 0:01:31]}  Ne6 {[%clk 0:00:08]} 40. Nh4 {[%clk 0:01:30]}  Kf6 {[%clk 0:00:07]} 41. Nf3 {[%clk 0:01:28]}  Ng5 {[%clk 0:00:06]} 42. Ng1 {[%clk 0:01:27]}  Ne6 {[%clk 0:00:05]} 43. c3 {[%clk 0:01:26]}  g5 {[%clk 0:00:05]} 44. Ne2 {[%clk 0:01:20]}  g4 {[%clk 0:00:04]} 45. h4 {[%clk 0:01:19]}  Nd8 {[%clk 0:00:04]} 46. d4 {[%clk 0:01:15]}  cxd4+ {[%clk 0:00:03]} 47. cxd4 {[%clk 0:01:16]}  exd4+ {[%clk 0:00:03]} 48. Kxd4 {[%clk 0:01:09]}  Ne6+ {[%clk 0:00:03]} 49. Ke3 {[%clk 0:01:07]}  Ke5 {[%clk 0:00:03]} 50. Nc1 {[%clk 0:00:56]}  d5 {[%clk 0:00:03]} 51. Nd3+ {[%clk 0:00:56]}  Kd6 {[%clk 0:00:03]} 52. e5+ {[%clk 0:00:55]}  Ke7 {[%clk 0:00:03]} 53. b4 {[%clk 0:00:53]}  a6 {[%clk 0:00:03]} 54. a5 {[%clk 0:00:41]}  Kd7 {[%clk 0:00:03]} 55. Nb2 {[%clk 0:00:32]}  c5 {[%clk 0:00:03]} 56. bxc5 {[%clk 0:00:30]}  Nxc5 {[%clk 0:00:03]} 57. Kf4 {[%clk 0:00:28]}  Ke6 {[%clk 0:00:03]} 58. Nd1 {[%clk 0:00:21]}  d4 {[%clk 0:00:03]} 59. Nf2 {[%clk 0:00:20]}  d3 {[%clk 0:00:03]} 60. Nd1 {[%clk 0:00:16]}  d2 {[%clk 0:00:03]} 61. Ke3 {[%clk 0:00:15]}  Nb3 {[%clk 0:00:03]} 62. Kd3 {[%clk 0:00:13]}  Kxe5 {[%clk 0:00:03]} 63. Kc3 {[%clk 0:00:12]}  Nxa5 {[%clk 0:00:03]} 64. Kxd2 {[%clk 0:00:13]}  Ke4 {[%clk 0:00:03]} 65. Ke2 {[%clk 0:00:13]}  Nc4 {[%clk 0:00:03]} 66. Nc3+ {[%clk 0:00:14]}  Ke5 {[%clk 0:00:04]} 67. Na4 {[%clk 0:00:14]}  a5 {[%clk 0:00:04]} 68. Kd3 {[%clk 0:00:14]}  Nd6 {[%clk 0:00:04]} 69. Nb6 {[%clk 0:00:14]}  Ne4 {[%clk 0:00:04]} 70. Nc4+ {[%clk 0:00:14]}  Kf5 {[%clk 0:00:04]} 71. Nxa5 {[%clk 0:00:15]}  Nxg3 {[%clk 0:00:04]} 72. Ke3 {[%clk 0:00:15]}  Nf1+ {[%clk 0:00:03]} 73. Kf2 {[%clk 0:00:15]}  Nd2 {[%clk 0:00:04]} 74. Nc6 {[%clk 0:00:15]}  Ne4+ {[%clk 0:00:04]} 75. Kg1 {[%clk 0:00:15]}  Kf4 {[%clk 0:00:04]} 76. Kg2 {[%clk 0:00:16]}  Nd6 {[%clk 0:00:03]} 77. Ne7 {[%clk 0:00:16]}  Nf5 {[%clk 0:00:03]} 78. Nd5+ {[%clk 0:00:16]}  Ke5 {[%clk 0:00:03]} 79. Nc3 {[%clk 0:00:13]}  Nxh4+ {[%clk 0:00:03]} 80. Kf2 {[%clk 0:00:11]}  Nf5 {[%clk 0:00:04]} 81. Ne2 {[%clk 0:00:11]}  Kf6 {[%clk 0:00:04]} 82. Nf4 {[%clk 0:00:11]}  Kg5 {[%clk 0:00:04]} 83. Ng2 {[%clk 0:00:12]}  h4 {[%clk 0:00:04]} 84. Kg1 {[%clk 0:00:12]}  h3 {[%clk 0:00:04]} 85. Ne1 {[%clk 0:00:12]}  g3 {[%clk 0:00:04]} 86. Nf3+ {[%clk 0:00:12]}  Kf4 {[%clk 0:00:04]} 87. Ne1 {[%clk 0:00:11]}  Nd4 {[%clk 0:00:04]} 88. Kh1 {[%clk 0:00:11]}  Nf3 {[%clk 0:00:04]} 89. Ng2+ {[%clk 0:00:06]}  hxg2+ {[%clk 0:00:04]} 90. Kxg2 {[%clk 0:00:07]}  Kg4 {[%clk 0:00:04]} 91. Kh1 {[%clk 0:00:08]}  Ng5 {[%clk 0:00:04]} 92. Kg2 {[%clk 0:00:09]}  Ne4 {[%clk 0:00:04]} 93. Kh1 {[%clk 0:00:10]}  Kh3 {[%clk 0:00:04]} 94. Kg1 {[%clk 0:00:10]}  Nd2 {[%clk 0:00:04]} 95. Kh1 {[%clk 0:00:11]}  g2+ {[%clk 0:00:04]} 96. Kg1 {[%clk 0:00:12]}  Nf3+ {[%clk 0:00:05]} 97. Kf2 {[%clk 0:00:13]}  g1=Q+ {[%clk 0:00:05]} 98. Kxf3 {[%clk 0:00:14]}  Qf1+ {[%clk 0:00:05]} 99. Ke3 {[%clk 0:00:14]}  Kg4 {[%clk 0:00:05]} 100. Kd2 {[%clk 0:00:13]}  Kf4 {[%clk 0:00:05]} 101. Kc2 {[%clk 0:00:12]}  Qe2+ {[%clk 0:00:05]} 102. Kc1 {[%clk 0:00:12]}  Ke4 {[%clk 0:00:05]} 103. Kb1 {[%clk 0:00:13]}  Kd3 {[%clk 0:00:06]} 104. Ka1 {[%clk 0:00:14]}  Kc3 {[%clk 0:00:06]} 105. Kb1 {[%clk 0:00:15]}  Qb2# {[%clk 0:00:06]} 0-1


[Site "https://www.chess.com"]